fUSD/lending_fUSD_20240104
["ID","MTS","AMOUNT","RATE_DAILY","PERIOD"]
[310143618,1704383465740,-1030.82,0.00033424,2]
[310143619,1704383465750,-8961.73,0.00033424,2]
[310143620,1704383465759,-1547.75,0.00033424,2]
[310143621,1704383465769,-832.48,0.00033424,2]
[310143622,1704383465778,-2868.4,0.00033424,2]
[310143623,1704383465787,-500.0,0.00033424,2]
[310143624,1704383465797,-500.0,0.00033424,2]
[310143625,1704383465806,-1262.46,0.00033424,2]
[310143626,1704383465816,-500.0,0.00033424,2]
[310143627,1704383465826,-500.0,0.00033424,2]
[310143628,1704383465836,-6572.59,0.00033424,2]
[310143629,1704383465845,-569.73,0.00033424,2]
[310143630,1704383465855,-593.34,0.00033424,2]
[310143631,1704383465868,-4284.47,0.00033424,2]
[310143632,1704383465878,-500.0,0.00033424,2]
[310143633,1704383465888,-918.99,0.00033424,2]
[310143634,1704383465898,-11824.09,0.00033424,2]
[310143635,1704383465907,-500.0,0.00033424,2]
[310143636,1704383465917,-1528.9,0.00033424,2]
[310143637,1704383465927,-839.12,0.00033424,2]
[310143638,1704383465936,-500.0,0.00033424,2]
[310143639,1704383465946,-626.51,0.00033424,2]
[310143640,1704383465956,-512.9,0.00033424,2]
[310143641,1704383465966,-272.9888689,0.00033424,2]
[310143642,1704383465976,-815.35,0.00033424,2]
[310143643,1704383465985,-722.14,0.00033424,2]
[310143644,1704383465995,-1946.58,0.00033424,2]
[310143645,1704383466006,-988.65,0.00033424,2]
[310143646,1704383466015,-25969.53,0.00033424,2]
[310143647,1704383466027,-2402.27,0.00033424,2]
[310143648,1704383466037,-500.0,0.00033424,2]
[310143649,1704383466048,-2320.41,0.00033424,2]
[310143650,1704383466059,-500.0,0.00033424,2]
[310143651,1704383466069,-631.59,0.00033424,2]
[310143652,1704383466079,-871.23,0.00033424,2]
[310143653,1704383466089,-643.49722167,0.00033424,2]
[310143654,1704383466100,-1013.95,0.00033424,2]
[310143655,1704383466111,-1333.9,0.00033424,2]
[310143656,1704383466125,-500.0,0.00033424,2]
[310143657,1704383466135,-14205.53,0.00033424,2]
[310143658,1704383466145,-538.54188869,0.00033424,2]
[310143659,1704383466155,-1593.12,0.00033424,2]
[310143660,1704383466165,-835.86,0.00033424,2]
[310143661,1704383466176,-500.0,0.00033424,2]
[310143662,1704383466186,-586.95,0.00033424,2]
[310143663,1704383466196,-1058.98,0.00033424,2]
[310143664,1704383466206,-500.0,0.00033424,2]
[310143665,1704383466217,-1481.66,0.00033424,2]
[310143666,1704383466227,-500.0,0.00033424,2]
[310143667,1704383466237,-684.9,0.00033424,2]
[310143668,1704383466247,-500.0,0.00033424,2]
[310143669,1704383466258,-10274.33,0.00033424,2]
[310143670,1704383466268,-1140.38,0.00033424,2]
[310143671,1704383466278,-596.7,0.00033424,2]
[310143672,1704383466288,-500.0,0.00033424,2]
[310143673,1704383466299,-5311.22,0.00033424,2]
[310143674,1704383466309,-500.0,0.00033424,2]
[310143675,1704383466320,-1489.0,0.00033424,2]
[310143676,1704383466330,-500.0,0.00033424,2]
[310143677,1704383466340,-1020.8,0.00033424,2]
[310143678,1704383466349,-500.0,0.00033424,2]
[310143679,1704383466358,-708.19,0.00033424,2]
[310143680,1704383466369,-1641.33,0.00033424,2]
[310143681,1704383466379,-500.0,0.00033424,2]
[310143682,1704383466389,-1563.54,0.00033424,2]
[310143683,1704383466398,-4689.3,0.00033424,2]
[310143684,1704383466409,-3501.75,0.00033424,2]
[310143685,1704383466419,-1821.71,0.00033424,2]
[310143686,1704383466429,-581.11,0.00033424,2]
[310143687,1704383466439,-1520.64,0.00033424,2]
[310143688,1704383466449,-917.4,0.00033424,2]
[310143689,1704383466459,-500.0,0.00033424,2]
[310143690,1704383466469,-1132.36,0.00033424,2]
[310143691,1704383466479,-980.64,0.00033424,2]
[310143692,1704383466489,-611.97,0.00033424,2]
[310143693,1704383466499,-911.8,0.00033424,2]
[310143694,1704383466509,-512.76,0.00033424,2]
[310143695,1704383466520,-500.0,0.00033424,2]
[310143696,1704383466530,-500.0,0.00033424,2]
[310143697,1704383466540,-500.0,0.00033424,2]
[310143698,1704383466550,-611.41,0.00033424,2]
[310143699,1704383466560,-3660.07,0.00033424,2]
[310143700,1704383466570,-758.21,0.00033424,2]
[310143701,1704383466580,-374.379538,0.00033424,2]
[310143702,1704383466589,-4379.2,0.00033424,2]
[310143703,1704383466599,-741.69,0.00033424,2]
[310143704,1704383466608,-2326.77,0.00033424,2]
[310143705,1704383466620,-1104.09,0.00033424,2]
[310143706,1704383466630,-500.0,0.00033424,2]
[310143707,1704383466639,-240.70904044,0.00033424,2]
[310143708,1704383466648,-500.0,0.00033424,2]
[310143709,1704383466658,-1962.91,0.00033424,2]
[310143710,1704383466668,-1792.29,0.00033424,2]
[310143711,1704383466677,-500.0,0.00033424,2]
[310143712,1704383466686,-20208.69,0.00033424,2]
[310143713,1704383466696,-1258.81,0.00033424,2]
[310143714,1704383466705,-500.0,0.00033424,2]
[310143715,1704383466715,-500.0,0.00033424,2]
[310143716,1704383466724,-765.42,0.00033424,2]
[310143717,1704383466734,-3848.58,0.00033424,2]
[310143718,1704383466744,-2574.21,0.00033424,2]
[310143719,1704383466754,-879.94,0.00033424,2]
[310143720,1704383466764,-764.06,0.00033424,2]
[310143721,1704383466774,-524.17058557,0.00033424,2]
[310143722,1704383466784,-500.0,0.00033424,2]
[310143723,1704383466794,-500.0,0.00033424,2]
[310143724,1704383466804,-500.0,0.00033424,2]
[310143725,1704383466813,-2186.2,0.00033424,2]
[310143726,1704383466824,-8578.01,0.00033424,2]
[310143727,1704383466837,-706.9,0.00033424,2]
[310143728,1704383466847,-500.0,0.00033424,2]
[310143729,1704383466856,-1367.02,0.00033424,2]
[310143730,1704383466867,-500.0,0.00033424,2]
[310143731,1704383466879,-6759.03,0.00033424,2]
[310143732,1704383466888,-500.0,0.00033424,2]
[310143733,1704383466897,-2234.12,0.00033424,2]
[310143734,1704383466912,-7989.34,0.00033424,2]
[310143735,1704383466922,-571.79,0.00033424,2]
[310143736,1704383466932,-886.97,0.00033424,2]
[310143737,1704383466958,-500.0,0.00033424,2]
[310143738,1704383466969,-1134.35,0.00033424,2]
[310143739,1704383466979,-582.52,0.00033424,2]
[310143740,1704383466989,-3268.96,0.00033424,2]
[310143741,1704383467016,-1409.66,0.00033424,2]
[310143742,1704383467027,-500.0,0.00033424,2]
[310143743,1704383467048,-621.91619788,0.00033424,2]
[310143744,1704383467059,-5952.87,0.00033424,2]
[310143745,1704383467075,-1108.08,0.00033424,2]
[310143746,1704383467088,-734.31,0.00033424,2]
[310143747,1704383467103,-617.19,0.00033424,2]
[310143748,1704383467119,-500.0,0.00033424,2]
[310143749,1704383467128,-500.0,0.00033424,2]
[310143750,1704383467138,-1176.29,0.00033424,2]
[310143751,1704383467156,-500.0,0.00033424,2]
[310143752,1704383467166,-593.47,0.00033424,2]
[310143753,1704383467175,-500.0,0.00033424,2]
[310143754,1704383467201,-3760.93,0.00033424,2]
[310143755,1704383467214,-500.0,0.00033424,2]
[310143756,1704383467232,-2563.17,0.00033424,2]
[310143757,1704383467243,-648.96,0.00033424,2]
[310143758,1704383467257,-735.99,0.00033424,2]
[310143759,1704383467270,-727.54,0.00033424,2]
[310143760,1704383467281,-912.37,0.00033424,2]
[310143761,1704383467296,-1710.93,0.00033424,2]
[310143762,1704383467307,-797.16,0.00033424,2]
[310143763,1704383467324,-500.0,0.00033424,2]
[310143764,1704383467338,-1123.81,0.00033424,2]
[310143765,1704383467362,-500.0,0.00033424,2]
[310143766,1704383467388,-1782.07,0.00033424,2]
[310143767,1704383467398,-3505.81,0.00033424,2]
[310143768,1704383467415,-526.11,0.00033424,2]
[310143769,1704383467439,-6058.41,0.00033424,2]
[310143770,1704383467448,-743.76,0.00033424,2]
[310143771,1704383467458,-813.13,0.00033424,2]
[310143772,1704383467468,-500.0,0.00033424,2]
[310143773,1704383467479,-1111.68,0.00033424,2]
[310143774,1704383467490,-500.0,0.00033424,2]
[310143775,1704383467500,-633.13,0.00033424,2]
[310143776,1704383467510,-2411.49,0.00033424,2]
[310143777,1704383467521,-500.0,0.00033424,2]
[310143778,1704383467531,-500.0,0.00033424,2]
[310143779,1704383467541,-1980.1,0.00033424,2]
[310143780,1704383467551,-766.75,0.00033424,2]
[310143781,1704383467562,-2763.55,0.00033424,2]
[310143782,1704383467573,-711.0,0.00033424,2]
[310143783,1704383467584,-500.0,0.00033424,2]
[310143784,1704383467595,-500.0,0.00033424,2]
[310143785,1704383467605,-1787.6,0.00033424,2]
[310143786,1704383467618,-500.0,0.00033424,2]
[310143787,1704383467628,-500.0,0.00033424,2]
[310143788,1704383467640,-1042.72,0.00033424,2]
[310143789,1704383467650,-1394.66,0.00033424,2]
[310143790,1704383467661,-786.66,0.00033424,2]
[310143791,1704383467672,-500.0,0.00033424,2]
[310143792,1704383467682,-500.0,0.00033424,2]
[310143793,1704383467692,-500.0,0.00033424,2]
[310143794,1704383467702,-739.91,0.00033424,2]
[310143795,1704383467713,-1762.55,0.00033424,2]
[310143796,1704383467723,-500.0,0.00033424,2]
[310143797,1704383467734,-1801.4,0.00033424,2]
[310143798,1704383467745,-587.29,0.00033424,2]
[310143799,1704383467756,-6835.67,0.00033424,2]
[310143800,1704383467766,-2106.94,0.00033424,2]
[310143801,1704383467777,-500.0,0.00033424,2]
[310143802,1704383467788,-690.38,0.00033424,2]
[310143803,1704383467799,-500.0,0.00033424,2]
[310143804,1704383467810,-2355.23,0.00033424,2]
[310143805,1704383467821,-807.14,0.00033424,2]
[310143806,1704383467833,-1766.54,0.00033424,2]
[310143807,1704383467844,-1880.43,0.00033424,2]
[310143808,1704383467855,-500.0,0.00033424,2]
[310143809,1704383467871,-2893.14,0.00033424,2]
[310143810,1704383467881,-23730.97,0.00033424,2]
[310143811,1704383467892,-340.17335592,0.00033424,2]
[310143812,1704383467902,-500.0,0.00033424,2]
[310143813,1704383467913,-500.0,0.00033424,2]
[310143814,1704383467994,-9423.68,0.00033424,2]
[310143815,1704383468006,-10972.52,0.00033424,2]
[310143816,1704383468017,-553.51,0.00033424,2]
[310143817,1704383468030,-3799.42,0.00033424,2]
[310143818,1704383468041,-24318.36,0.00033424,2]
[310143819,1704383468054,-1932.66,0.00033424,2]
[310143820,1704383468065,-640.95,0.00033424,2]
[310143821,1704383468076,-3015.08,0.00033424,2]
[310143822,1704383468087,-1267.01,0.00033424,2]
[310143823,1704383468099,-500.0,0.00033424,2]
[310143824,1704383468110,-1749.78,0.00033424,2]
[310143825,1704383468125,-500.0,0.00033424,2]
[310143826,1704383468135,-513.45,0.00033424,2]
[310143827,1704383468146,-517.41,0.00033424,2]
[310143828,1704383468156,-500.0,0.00033424,2]
[310143829,1704383468167,-1411.28,0.00033424,2]
[310143830,1704383468178,-1062.95,0.00033424,2]
[310143831,1704383468189,-500.0,0.00033424,2]
[310143832,1704383468199,-500.0,0.00033424,2]
[310143833,1704383468209,-500.0,0.00033424,2]
[310143834,1704383468220,-500.0,0.00033424,2]
[310143835,1704383468230,-500.0,0.00033424,2]
[310143836,1704383468241,-2283.61,0.00033424,2]
[310143837,1704383468252,-3700.77,0.00033424,2]
[310143838,1704383468262,-727.7,0.00033424,2]
[310143839,1704383468273,-5126.0,0.00033424,2]
[310143840,1704383468284,-1211.88,0.00033424,2]
[310143841,1704383468294,-500.0,0.00033424,2]
[310143842,1704383468305,-1230.09,0.00033424,2]
[310143843,1704383468315,-1468.8,0.00033424,2]
[310143844,1704383468325,-1555.26,0.00033424,2]
[310143845,1704383468335,-3590.95,0.00033424,2]
[310143846,1704383468345,-3092.57,0.00033424,2]
[310143847,1704383468355,-230.22,0.00033424,2]
[310143848,1704383468366,-500.0,0.00033424,2]
[310143849,1704383468375,-4974.75,0.00033424,2]
[310143850,1704383468385,-500.0,0.00033424,2]
[310143851,1704383468397,-686.38,0.00033424,2]
[310143852,1704383468406,-2190.23,0.00033424,2]
[310143853,1704383468416,-2624.79,0.00033424,2]
[310143854,1704383468426,-500.0,0.00033424,2]
[310143855,1704383468436,-3516.79,0.00033424,2]
[310143856,1704383468447,-500.0,0.00033424,2]
[310143857,1704383468458,-500.0,0.00033424,2]
[310143858,1704383468467,-6437.83,0.00033424,2]
[310143859,1704383468478,-948.35,0.00033424,2]
[310143860,1704383468487,-500.0,0.00033424,2]
[310143861,1704383468497,-4606.86,0.00033424,2]
[310143862,1704383468506,-1067.46,0.00033424,2]
[310143863,1704383468516,-706.69,0.00033424,2]
[310143864,1704383468525,-500.0,0.00033424,2]
[310143865,1704383468535,-1535.74,0.00033424,2]
[310143866,1704383468544,-2597.4,0.00033424,2]
[310143867,1704383468554,-541.5,0.00033424,2]
[310143868,1704383468563,-759.67,0.00033424,2]
[310143869,1704383468574,-500.0,0.00033424,2]
[310143870,1704383468584,-779.16,0.00033424,2]
[310143871,1704383468593,-152.0,0.00033436,3]
[310143872,1704383468603,-154.56836738,0.00033481,5]
[310143873,1704383468614,-875.04168843,0.00033513,22]
[310143874,1704383468624,-150.62022441,0.00033558,2]
[310143875,1704383468634,-16102.18301658,0.00033561,2]
[310143876,1704383468644,-1301.99,0.000336,2]
[310143877,1704383468654,-1301.99,0.000336,2]
[310143878,1704383468663,-1301.99,0.000336,2]
[310143879,1704383468673,-1301.99,0.000336,2]
[310143880,1704383468683,-1301.99,0.000336,2]
[310143881,1704383468693,-1301.99,0.000336,2]
[310143882,1704383468703,-1301.99,0.000336,2]
[310143883,1704383468713,-1301.99,0.000336,2]
[310143884,1704383468723,-1301.99,0.000336,2]
[310143885,1704383468733,-1301.99,0.000336,2]
[310143886,1704383468743,-157.32,0.000336,2]
[310143887,1704383468752,-482.14,0.000336,2]
[310143888,1704383468762,-482.14,0.000336,2]
[310143889,1704383468772,-482.14,0.000336,2]
[310143890,1704383468782,-482.14,0.000336,2]
[310143891,1704383468793,-482.14,0.000336,2]
[310143892,1704383468803,-482.14,0.000336,2]
[310143893,1704383468813,-482.14,0.000336,2]
[310143894,1704383468822,-482.14,0.000336,2]
[310143895,1704383468834,-482.14,0.000336,2]
[310143896,1704383468845,-482.14,0.000336,2]
[310143897,1704383468854,-482.14,0.000336,2]
[310143898,1704383468865,-482.14,0.000336,2]
[310143899,1704383468877,-482.14,0.000336,2]
[310143900,1704383468886,-482.14,0.000336,2]
[310143901,1704383468895,-482.14,0.000336,2]
[310143902,1704383468904,-482.14,0.000336,2]
[310143903,1704383468914,-482.14,0.000336,2]
[310143904,1704383468923,-482.14,0.000336,2]
[310143905,1704383468933,-482.14,0.000336,2]
[310143906,1704383468943,-482.14,0.000336,2]
[310143907,1704383468952,-1336.23,0.00033634,2]
[310143908,1704383468962,-3525.84,0.00033634,2]
[310143909,1704383468972,-6019.26,0.00033634,2]
[310143910,1704383468982,-3397.48,0.00033634,2]
[310143911,1704383468992,-1947.5,0.00033634,2]
[310143912,1704383469002,-1682.52,0.00033634,2]
[310143913,1704383469012,-1189.91,0.00033634,2]
[310143914,1704383469022,-4784.68,0.00033634,2]
[310143915,1704383469032,-934.89,0.00033634,2]
[310143916,1704383469042,-985.65,0.00033634,2]
[310143917,1704383469053,-1403.95,0.00033634,2]
[310143918,1704383469063,-853.25,0.00033634,2]
[310143919,1704383469075,-1981.92,0.00033634,2]
[310143920,1704383469085,-753.63,0.00033634,2]
[310143921,1704383469096,-1272.31,0.00033634,2]
[310143922,1704383469111,-4520.67,0.00033634,2]
[310143923,1704383469124,-2090.34,0.00033634,2]
[310143924,1704383469137,-500.0,0.00033634,2]
[310143925,1704383469151,-500.0,0.00033634,2]
[310143926,1704383469161,-1472.7,0.00033634,2]
[310143927,1704383469172,-631.14,0.00033634,2]
[310143928,1704383469183,-4541.31,0.00033697,2]
[310143929,1704383469194,-4541.31,0.00033697,2]
[310143930,1704383469209,-500.0,0.00033698,2]
[310143931,1704383469220,-500.0,0.00033698,2]
[310143932,1704383469230,-500.0,0.00033698,2]
[310143933,1704383469242,-500.0,0.00033698,2]
[310143934,1704383469253,-500.0,0.00033698,2]
[310143935,1704383469264,-500.0,0.00033698,2]
[310143936,1704383469274,-240.22468321,0.00033698,2]
[310143937,1704383469289,-500.0,0.00033698,2]
[310143938,1704383469301,-500.0,0.00033698,2]
[310143939,1704383469312,-500.0,0.00033698,2]
[310143940,1704383469322,-500.0,0.00033698,2]
[310143941,1704383469333,-500.0,0.00033698,2]
[310143942,1704383469343,-500.0,0.00033698,2]
[310143943,1704383469360,-500.0,0.00033698,2]
[310143944,1704383469378,-1581.45,0.00033698,2]
[310143945,1704383469390,-592.65,0.00033698,2]
[310143946,1704383469401,-500.0,0.00033698,2]
[310143947,1704383469412,-500.0,0.00033698,2]
[310143948,1704383469426,-500.0,0.00033698,2]
[310143949,1704383469437,-500.0,0.00033698,2]
[310143950,1704383469448,-820.54,0.00033698,2]
[310143951,1704383469459,-500.0,0.00033698,2]
[310143952,1704383469471,-608.9793734,0.00033698,2]
[310143953,1704383469483,-500.0,0.00033698,2]
[310143954,1704383469494,-553.43,0.00033698,2]
[310143955,1704383469504,-500.0,0.00033698,2]
[310143956,1704383469521,-1835.21,0.00033698,2]
[310143957,1704383469532,-500.0,0.00033698,2]
[310143958,1704383469543,-532.57,0.00033698,2]
[310143959,1704383469562,-537.5372123,0.00033698,2]
[310143960,1704383469573,-558.15,0.00033698,2]
[310143961,1704383469583,-916.08,0.00033698,2]
[310143962,1704383469594,-500.0,0.00033698,2]
[310143963,1704383469605,-500.0,0.00033698,2]
[310143964,1704383469617,-500.0,0.00033698,2]
[310143965,1704383469627,-500.0,0.00033698,2]
[310143966,1704383469638,-1068.71,0.00033698,2]
[310143967,1704383469657,-1645.35,0.00033698,2]
[310143968,1704383469669,-500.0,0.00033698,2]
[310143969,1704383469680,-500.0,0.00033698,2]
[310143970,1704383469690,-819.52,0.00033698,2]
[310143971,1704383469701,-1289.9,0.00033698,2]
[310143972,1704383469712,-500.0,0.00033698,2]
[310143973,1704383469723,-701.85,0.00033698,2]
[310143974,1704383469733,-592.8,0.00033698,2]
[310143975,1704383469744,-1192.37,0.00033698,2]
[310143976,1704383469755,-515.52,0.00033698,2]
[310143977,1704383469765,-500.0,0.00033698,2]
[310143978,1704383469777,-500.0,0.00033698,2]
[310143979,1704383469788,-500.0,0.00033698,2]
[310143980,1704383469800,-1365.23,0.00033698,2]
[310143981,1704383469811,-500.0,0.00033698,2]
[310143982,1704383469822,-500.0,0.00033698,2]
[310143983,1704383469833,-500.0,0.00033698,2]
[310143984,1704383469848,-500.0,0.00033698,2]
[310143985,1704383469859,-500.0,0.00033698,2]
[310143986,1704383469873,-507.42,0.00033698,2]
[310143987,1704383469893,-599.75,0.00033698,2]
[310143988,1704383469904,-592.27,0.00033698,2]
[310143989,1704383469921,-500.0,0.00033698,2]
[310143990,1704383469937,-664.2,0.00033698,2]
[310143991,1704383469948,-500.0,0.00033698,2]
[310143992,1704383469959,-500.0,0.00033698,2]
[310143993,1704383469970,-1043.25,0.00033698,2]
[310143994,1704383469980,-626.37,0.00033698,2]
[310143995,1704383469991,-500.0,0.00033698,2]
[310143996,1704383470002,-500.0,0.00033698,2]
[310143997,1704383470014,-500.0,0.00033698,2]
[310143998,1704383470033,-500.0,0.00033698,2]
[310143999,1704383470045,-500.0,0.00033698,2]
[310144000,1704383470057,-977.44,0.00033698,2]
[310144001,1704383470068,-917.78,0.00033698,2]
[310144002,1704383470079,-500.0,0.00033698,2]
[310144003,1704383470090,-500.0,0.00033698,2]
[310144004,1704383470102,-500.0,0.00033698,2]
[310144005,1704383470116,-535.3,0.00033698,2]
[310144006,1704383470126,-500.0,0.00033698,2]
[310144007,1704383470137,-500.0,0.00033698,2]
[310144008,1704383470148,-573.47,0.00033698,2]
[310144009,1704383470159,-500.0,0.00033698,2]
[310144010,1704383470169,-500.0,0.00033698,2]
[310144011,1704383470179,-679.66,0.00033698,2]
[310144012,1704383470190,-868.42,0.00033698,2]
[310144013,1704383470200,-500.0,0.00033698,2]
[310144014,1704383470210,-500.0,0.00033698,2]
[310144015,1704383470220,-500.0,0.00033698,2]
[310144016,1704383470230,-500.0,0.00033698,2]
[310144017,1704383470240,-500.0,0.00033698,2]
[310144018,1704383470250,-500.0,0.00033698,2]
[310144019,1704383470260,-941.55,0.00033698,2]
[310144020,1704383470270,-300.02410022,0.00033698,2]
[310144021,1704383470281,-500.0,0.00033698,2]
[310144022,1704383470292,-500.0,0.00033698,2]
[310144023,1704383470303,-1452.62,0.00033698,2]
[310144024,1704383470313,-308.28504078,0.00033698,2]
[310144025,1704383470324,-540.38,0.00033698,2]
[310144026,1704383470335,-500.0,0.00033698,2]
[310144027,1704383470346,-500.0,0.00033698,2]
[310144028,1704383470358,-1669.57,0.00033698,2]
[310144029,1704383470371,-1419.74,0.00033698,2]
[310144030,1704383470382,-500.0,0.00033698,2]
[310144031,1704383470393,-1040.63,0.00033698,2]
[310144032,1704383470404,-1057.35,0.00033698,2]
[310144033,1704383470415,-1409.78,0.00033698,2]
[310144034,1704383470425,-786.88,0.00033698,2]
[310144035,1704383470436,-308.97034156,0.00033698,2]
[310144036,1704383470446,-500.0,0.00033698,2]
[310144037,1704383470456,-1086.26,0.00033698,2]
[310144038,1704383470467,-500.0,0.00033698,2]
[310144039,1704383470478,-500.0,0.00033698,2]
[310144040,1704383470489,-500.0,0.00033698,2]
[310144041,1704383470499,-532.76,0.00033698,2]
[310144042,1704383470510,-500.0,0.00033698,2]
[310144043,1704383470522,-500.0,0.00033698,2]
[310144044,1704383470533,-728.75,0.00033698,2]
[310144045,1704383470544,-240.53638055,0.00033698,2]
[310144046,1704383470555,-500.0,0.00033698,2]
[310144047,1704383470567,-1028.01,0.00033698,2]
[310144048,1704383470577,-500.0,0.00033698,2]
[310144049,1704383470588,-803.51,0.00033698,2]
[310144050,1704383470598,-529.48155935,0.00033698,2]
[310144051,1704383470609,-558.96103711,0.00033698,2]
[310144052,1704383470623,-500.0,0.00033698,2]
[310144053,1704383470632,-1123.92,0.00033698,2]
[310144054,1704383470643,-517.51,0.00033698,2]
[310144055,1704383470653,-500.0,0.00033698,2]
[310144056,1704383470664,-500.0,0.00033698,2]
[310144057,1704383470674,-500.0,0.00033698,2]
[310144058,1704383470684,-500.0,0.00033698,2]
[310144059,1704383470694,-720.98,0.00033698,2]
[310144060,1704383470703,-500.0,0.00033698,2]
[310144061,1704383470713,-1451.87,0.00033698,2]
[310144062,1704383470723,-500.0,0.00033698,2]
[310144063,1704383470733,-500.0,0.00033698,2]
[310144064,1704383470743,-500.0,0.00033698,2]
[310144065,1704383470756,-678.82,0.00033698,2]
[310144066,1704383470766,-759.68,0.00033698,2]
[310144067,1704383470776,-500.0,0.00033698,2]
[310144068,1704383470786,-3071.54,0.00033698,2]
[310144069,1704383470797,-615.97,0.00033698,2]
[310144070,1704383470807,-1363.51,0.00033698,2]
[310144071,1704383470817,-566.19,0.00033698,2]
[310144072,1704383470828,-446.62210815,0.00033698,2]
[310144073,1704383470842,-870.68,0.00033698,2]
[310144074,1704383470852,-500.0,0.00033698,2]
[310144075,1704383470862,-629.74201844,0.00033698,2]
[310144076,1704383470876,-644.75432551,0.00033698,2]
[310144077,1704383470886,-500.0,0.00033698,2]
[310144078,1704383470896,-500.0,0.00033698,2]
[310144079,1704383470906,-535.58,0.00033698,2]
[310144080,1704383470916,-1457.23,0.00033698,2]
[310144081,1704383470926,-900.66,0.00033698,2]
[310144082,1704383470936,-902.65,0.00033698,2]
[310144083,1704383470947,-500.0,0.00033698,2]
[310144084,1704383470957,-1222.61,0.00033698,2]
[310144085,1704383470967,-573.57,0.00033698,2]
[310144086,1704383470977,-1042.2,0.00033698,2]
[310144087,1704383470987,-500.0,0.00033698,2]
[310144088,1704383470998,-500.0,0.00033698,2]
[310144089,1704383471008,-500.0,0.00033698,2]
[310144090,1704383471019,-728.74,0.00033698,2]
[310144091,1704383471030,-627.53,0.00033698,2]
[310144092,1704383471041,-746.5,0.00033698,2]
[310144093,1704383471052,-847.61,0.00033698,2]
[310144094,1704383471063,-500.0,0.00033698,2]
[310144095,1704383471073,-1537.38,0.00033698,2]
[310144096,1704383471083,-1357.77,0.00033698,2]
[310144097,1704383471093,-500.0,0.00033698,2]
[310144098,1704383471103,-1147.35,0.00033698,2]
[310144099,1704383471114,-500.0,0.00033698,2]
[310144100,1704383471125,-1349.09,0.00033698,2]
[310144101,1704383471135,-1079.84,0.00033698,2]
[310144102,1704383471145,-500.0,0.00033698,2]
[310144103,1704383471156,-500.0,0.00033698,2]
[310144104,1704383471166,-1513.63,0.00033698,2]
[310144105,1704383471176,-500.0,0.00033698,2]
[310144106,1704383471186,-500.0,0.00033698,2]
[310144107,1704383471197,-500.0,0.00033698,2]
[310144108,1704383471208,-511.54,0.00033698,2]
[310144109,1704383471219,-500.0,0.00033698,2]
[310144110,1704383471229,-1462.66,0.00033698,2]
[310144111,1704383471239,-500.0,0.00033698,2]
[310144112,1704383471249,-603.95,0.00033698,2]
[310144113,1704383471259,-1172.19,0.00033698,2]
[310144114,1704383471269,-1990.12,0.00033698,2]
[310144115,1704383471279,-1219.74,0.00033698,2]
[310144116,1704383471289,-500.0,0.00033698,2]
[310144117,1704383471299,-500.0,0.00033698,2]